bitfinex/quotes_ETHUSD_20220308
["timestamp","ask_amount","ask_price","bid_price","bid_amount"]
[1646780250257,1.24907046,2571.6,2570.6,5.2149]
[1646780250258,0.00329931,2570.9,2570.6,5.2149]
[1646780251057,1.24907046,2571.6,2570.6,5.2149]
[1646780251257,0.94907046,2571.6,2570.6,5.2149]
[1646780251462,0.00329931,2570.9,2570.6,5.2149]
[1646780252411,0.94907046,2571.6,2570.6,5.2149]
[1646780252610,0.00329931,2570.9,2570.6,5.2149]
[1646780253010,0.00329931,2570.9,2570.6,4.7149]
[1646780253510,0.94907046,2571.6,2570.6,5.0149]
[1646780253710,0.0031525,2570.9,2570.6,5.0149]
[1646780254713,0.94907046,2571.6,2570.6,5.0149]
[1646780255012,0.00317863,2570.9,2570.6,5.0149]
[1646780255851,0.94907046,2571.6,2570.6,5.0149]
[1646780256052,1.24907046,2571.7,2570.6,5.0149]
[1646780256257,0.00317863,2570.9,2570.6,5.0149]
[1646780257158,1.24907046,2571.7,2570.6,5.0149]
[1646780257357,0.00317932,2570.9,2570.6,5.9667]
[1646780257558,0.00317932,2570.9,2570.8,12.2898]
[1646780257760,0.00317932,2570.9,2570.8,16.6518]
[1646780257959,0.94907046,2572.1,2570.9,0.00282017]
[1646780258157,1.42596345,2572.3,2571.9,0.5]
[1646780258158,0.1943,2572.2,2571.9,0.5]
[1646780258361,0.1943,2572.2,2571.5,4.062]
[1646780258557,0.1943,2572.3,2571.5,4.362]
[1646780258758,1.14337046,2572.3,2571.5,4.362]
[1646780258957,0.1943,2572.3,2571.5,4.362]
[1646780259156,0.1943,2572.3,2571.5,5.3343589]
[1646780261405,1.24907046,2572.5,2571.5,5.3343589]
[1646780261603,0.3,2572.5,2571.5,17.6241589]
[1646780261803,0.94907046,2572.6,2571.5,17.6241589]
[1646780262307,0.00374509,2572.1,2571.5,17.6241589]
[1646780263151,0.94907046,2572.6,2571.5,17.6241589]
[1646780263553,0.00374522,2571.9,2571.5,17.6241589]
[1646780264354,1.24907046,2572.7,2571.5,17.6241589]
[1646780264853,0.00374529,2571.8,2571.5,17.6241589]
[1646780265254,0.00374529,2571.8,2571.5,17.8184589]
[1646780265656,1.14337046,2573.0,2571.8,0.9722149]
[1646780265857,1.14337046,2573.0,2571.9,4.062]
[1646780266258,1.14337046,2573.0,2571.9,4.362]
[1646780266660,0.94907046,2572.9,2571.9,16.6518]
[1646780266907,1.14337046,2573.0,2571.9,16.6518]
[1646780267116,0.00367458,2572.6,2572.0,12.2898]
[1646780267307,0.00367458,2572.6,2572.1,15.962]
[1646780267507,0.00367458,2572.6,2572.2,0.9720942]
[1646780267708,0.00367458,2572.6,2572.3,4.362]
[1646780267908,0.01469502,2573.2,2572.4,0.04999999]
[1646780268208,0.01469486,2573.2,2572.5,0.562]
[1646780268406,0.01469486,2573.2,2572.5,0.862]
[1646780268607,0.01469486,2573.2,2572.6,3.5]
[1646780268810,0.01469486,2573.2,2572.6,4.062]
[1646780269208,0.1943,2573.3,2572.6,4.062]
[1646780269617,0.00343524,2573.0,2572.6,4.062]
[1646780270208,0.00343524,2573.0,2572.7,0.9719305]
[1646780270550,8.56803891,2573.4,2572.8,0.562]
[1646780270551,0.0034353,2572.9,2572.8,0.562]
[1646780271654,8.36,2573.4,2572.8,0.562]
[1646780271858,0.00343527,2573.0,2572.8,4.062]
[1646780272457,0.00343527,2573.0,2572.8,0.562]
[1646780272658,0.00343527,2573.0,2572.8,4.062]
[1646780272859,8.36,2573.4,2572.8,4.062]
[1646780273059,0.0034702,2573.0,2572.8,4.062]
[1646780274062,8.36,2573.4,2572.8,4.062]
[1646780274707,8.36,2573.4,2572.8,4.362]
[1646780275107,8.36,2573.4,2572.8,4.5563]
[1646780276609,7.36,2573.9,2572.9,12.2898]
[1646780276809,7.36,2573.9,2573.1,0.971718]
[1646780277013,7.36,2573.9,2573.2,4.062]
[1646780277315,7.36,2573.9,2573.2,4.362]
[1646780277912,0.00373957,2573.7,2573.2,4.362]
[1646780278355,0.00373957,2573.7,2573.3,0.9716823]
[1646780278554,0.00373957,2573.7,2573.4,0.562]
[1646780278755,7.36,2573.9,2573.4,0.862]
[1646780278953,7.36,2573.9,2573.4,4.362]
[1646780279754,7.36,2573.9,2573.4,0.862]
[1646780280758,7.36,2573.9,2573.4,0.86083919]
[1646780281160,7.36,2573.9,2573.5,3.5]
[1646780281359,7.36,2573.9,2573.6,0.562]
[1646780281813,7.36,2573.9,2573.6,0.8836705]
[1646780282813,7.36362277,2573.9,2573.6,0.8836705]
[1646780283508,0.00362277,2573.9,2573.7,0.3]
[1646780283710,0.3,2574.3,2573.7,0.3]
[1646780283908,0.00350435,2573.9,2573.7,4.362]
[1646780284108,0.00350435,2573.9,2573.7,0.862]
[1646780284714,0.94907046,2574.4,2573.7,0.862]
[1646780285115,0.00350433,2573.9,2573.7,0.862]
[1646780285957,0.94907046,2574.4,2573.7,0.862]
[1646780286360,0.00350433,2573.9,2573.7,0.862]
[1646780287162,9.50327046,2574.5,2573.7,0.862]
[1646780287563,0.0034495,2573.9,2573.7,0.862]
[1646780288366,9.30907046,2574.5,2573.7,0.862]
[1646780288564,0.0034495,2573.9,2573.7,0.862]
[1646780289506,0.94907046,2574.4,2573.7,0.862]
[1646780289706,9.30907046,2574.5,2573.7,4.362]
[1646780289906,9.30907046,2574.5,2573.7,0.862]
[1646780289907,0.0034495,2573.9,2573.7,0.862]
[1646780290705,9.30907046,2574.5,2573.7,0.862]
[1646780290906,8.36,2574.5,2573.8,3.5]
[1646780291109,0.00345752,2573.9,2573.8,3.5]
[1646780291307,0.00345752,2573.9,2573.7,0.862]
[1646780291710,0.00345752,2573.9,2573.7,4.362]
[1646780291913,8.36,2574.5,2573.7,4.362]
[1646780292313,0.00345752,2573.9,2573.7,0.862]
[1646780292612,0.00345752,2573.9,2573.7,0.857785]
[1646780292814,0.00345752,2573.9,2573.7,4.357785]
[1646780293258,8.5542,2574.5,2573.7,0.857785]
[1646780293558,0.00345752,2573.9,2573.7,4.357785]
[1646780293757,0.00345752,2573.9,2573.7,0.857785]
[1646780294358,8.36,2574.5,2573.7,0.857785]
[1646780294558,0.00345635,2573.9,2573.7,4.357785]
[1646780294759,0.00345635,2573.9,2573.7,0.857785]
[1646780294959,0.00345635,2573.9,2573.7,4.357785]
[1646780295459,0.00345635,2573.9,2573.7,0.857785]
[1646780295664,9.30907046,2574.5,2573.7,0.857785]
[1646780295861,0.00345635,2573.9,2573.8,3.5]
[1646780296060,0.00345635,2573.9,2573.8,0.562]
[1646780296912,9.30907046,2574.5,2573.8,0.562]
[1646780297113,0.00345632,2574.0,2573.8,0.562]
[1646780297913,0.94907046,2574.4,2573.8,0.562]
[1646780298317,0.00345646,2574.0,2573.8,0.562]
[1646780299119,0.94907046,2574.4,2573.8,0.562]
[1646780299516,0.00345646,2574.0,2573.8,0.562]
[1646780300315,0.94907046,2574.3,2573.8,0.562]
[1646780300557,0.00345646,2574.0,2573.8,0.562]
[1646780301559,0.94907046,2574.2,2573.8,0.562]
[1646780301964,0.00345644,2574.0,2573.8,0.562]
[1646780303966,0.94907046,2574.1,2573.8,0.562]
[1646780304323,0.00345644,2574.0,2573.8,0.562]
[1646780305110,0.94907046,2574.1,2573.8,0.562]
[1646780305511,0.00345644,2574.0,2573.8,0.562]
[1646780306314,0.94907046,2574.1,2573.6,13.0458]
[1646780306515,0.94907046,2574.1,2573.6,1.4458]
[1646780306713,0.9525269,2574.0,2573.6,1.4458]
[1646780306916,0.9525269,2574.0,2573.3,4.062]
[1646780307118,0.94907046,2573.9,2573.3,0.862]
[1646780307518,1.24907046,2574.0,2573.3,0.862]
[1646780307717,0.94907046,2574.0,2573.3,0.862]
[1646780307918,0.00345661,2573.7,2573.3,0.862]
[1646780308557,0.00345661,2573.7,2573.3,4.362]
[1646780308761,0.94907046,2573.9,2573.3,4.362]
[1646780309160,0.00345666,2573.6,2573.3,4.362]
[1646780309959,0.94907046,2573.8,2573.3,4.362]
[1646780310360,0.00345669,2573.6,2573.3,4.362]
[1646780311266,0.94907046,2573.7,2573.3,4.362]
[1646780311464,0.00345669,2573.6,2573.3,4.362]
[1646780311908,0.95252715,2573.6,2573.3,4.362]
[1646780312109,0.95252715,2573.6,2573.3,0.862]
[1646780312511,0.94907046,2573.6,2573.3,0.862]
[1646780312708,0.95252716,2573.6,2573.3,0.862]
[1646780313109,0.0034567,2573.6,2573.3,0.862]
[1646780313308,0.0034567,2573.6,2573.3,4.362]
[1646780313508,0.94907046,2573.7,2573.3,4.362]
[1646780313915,0.94907046,2573.7,2573.3,0.862]
[1646780313916,0.0034567,2573.6,2573.3,0.862]
[1646780314110,0.0034567,2573.6,2573.3,4.362]
[1646780314710,0.94907046,2573.7,2573.3,0.862]
[1646780314911,0.94907046,2573.6,2573.3,0.862]
[1646780315111,0.95252716,2573.6,2573.3,0.862]
[1646780316158,0.94907046,2573.5,2573.3,0.862]
[1646780317563,0.95252719,2573.5,2573.3,0.86077588]
[1646780318363,0.94907046,2573.5,2573.4,3.5]
[1646780318563,0.95252719,2573.5,2573.3,0.86077588]
[1646780319168,0.94907046,2573.4,2573.3,0.86077588]
[1646780321118,0.00345676,2573.5,2573.3,0.86077588]
[1646780321921,1.42596345,2573.6,2573.3,0.86077588]
[1646780322124,1.42596345,2573.6,2573.3,0.562]
[1646780322323,0.00345673,2573.5,2573.3,0.562]
[1646780323162,1.42596345,2573.6,2573.3,0.562]
[1646780323560,0.00345673,2573.5,2573.3,0.562]
[1646780323760,0.95246809,2573.4,2573.3,0.562]
[1646780324161,0.95246809,2573.4,2573.3,0.862]
[1646780325363,1.42942021,2573.5,2573.3,0.862]
[1646780325563,1.42596345,2573.5,2573.3,0.862]
[1646780325963,0.00345676,2573.5,2573.3,0.862]
[1646780326163,1.42942021,2573.5,2573.3,0.862]
[1646780326562,0.00345676,2573.5,2573.3,0.862]
[1646780326817,1.42596345,2573.6,2573.3,0.862]
[1646780327017,0.95241507,2573.4,2573.3,0.862]
[1646780327211,0.00345673,2573.5,2573.3,0.862]
[1646780327412,0.95242489,2573.4,2573.3,0.862]
[1646780329014,1.42942021,2573.5,2573.3,0.862]
[1646780329217,1.42596345,2573.5,2573.3,0.862]
[1646780329414,0.00345676,2573.5,2573.3,0.862]
[1646780330221,1.42942021,2573.5,2573.3,0.562]
[1646780330423,1.42596345,2573.4,2572.9,1.7783]
[1646780330663,0.95240264,2573.2,2572.9,1.7783]
[1646780330862,0.95240264,2573.1,2572.9,1.7783]
[1646780331261,0.95240264,2573.1,2572.9,0.562]
[1646780331664,0.95240264,2573.1,2572.9,0.862]
[1646780331865,0.9558596,2573.1,2572.9,0.862]
[1646780332867,0.95240264,2573.1,2572.9,0.862]
[1646780333069,0.9558596,2573.1,2572.9,0.862]
[1646780334075,0.95240264,2573.1,2572.9,0.862]
[1646780334324,0.95585961,2573.1,2572.9,0.862]
[1646780335114,0.95240264,2573.1,2572.9,0.862]
[1646780335421,0.00345697,2573.1,2572.9,0.862]
[1646780336316,0.95240264,2573.2,2572.9,0.862]
[1646780336716,0.00345697,2573.1,2572.9,0.862]
[1646780337520,0.95240264,2573.2,2572.9,0.862]
[1646780337920,0.00345696,2573.1,2572.9,0.862]
[1646780338763,0.95240264,2573.2,2572.9,0.862]
[1646780339165,0.00345696,2573.1,2572.9,0.862]
[1646780339966,0.95240264,2573.2,2572.9,0.862]
[1646780340173,0.95240264,2573.2,2572.9,0.562]
[1646780340174,0.00345696,2573.1,2572.9,0.562]
[1646780340567,0.00345696,2573.1,2572.6,0.562]
[1646780340767,0.00345696,2573.1,2572.7,1.58961769]
[1646780341267,0.95240264,2573.2,2572.7,1.58961769]
[1646780341467,0.00345702,2573.0,2572.8,0.562]
[1646780342420,0.95240264,2573.2,2572.8,0.56091848]
[1646780342620,0.00345702,2573.0,2572.8,0.56091848]
[1646780343621,0.95240264,2573.2,2572.8,0.56091848]
[1646780343821,0.00345702,2573.0,2572.8,0.56091848]
[1646780344924,0.95240264,2573.2,2572.8,0.56091848]
[1646780345121,0.00345702,2573.0,2572.8,0.56091848]
[1646780346063,0.95240264,2573.2,2572.8,0.56091848]
[1646780346266,0.00345702,2573.0,2572.8,0.56091848]
[1646780347271,1.25240264,2573.2,2572.5,2.240513]
[1646780347470,0.95240264,2573.1,2572.6,1.58957818]
[1646780347671,0.95585966,2573.0,2572.6,1.58957818]
[1646780348071,0.95585966,2573.0,2572.6,2.15157818]
[1646780348370,0.95240264,2573.0,2572.6,0.562]
[1646780348670,0.00345708,2572.9,2572.6,0.562]
[1646780349721,0.95240264,2573.0,2572.6,0.562]
[1646780349920,0.00345711,2572.9,2572.6,0.562]
[1646780350922,0.95240264,2573.1,2572.6,0.562]
[1646780351124,0.00345711,2572.9,2572.6,0.562]
[1646780351322,0.00345711,2572.9,2572.7,1.58966849]
[1646780351724,0.00345711,2572.9,2572.5,1.523]
[1646780351927,0.00345711,2572.9,2572.6,1.58963368]
[1646780352127,0.95240264,2573.2,2572.6,1.58963368]
[1646780352326,0.00345708,2572.9,2572.6,1.58963368]
[1646780353175,0.95240264,2573.2,2572.6,1.58963368]
[1646780353572,0.00345711,2572.9,2572.6,1.58963368]
[1646780353975,0.00345711,2572.9,2572.2,1.1683]
[1646780354174,0.00345711,2572.9,2572.3,1.5897476]
[1646780354378,0.95585975,2572.9,2572.3,1.5897476]
[1646780354574,3.5,2573.0,2572.3,1.5897476]
[1646780354575,3.5,2572.8,2572.3,1.5897476]
[1646780354775,5.45240264,2572.8,2572.4,1.5897476]
[1646780354977,5.45240264,2572.8,2571.7,1.1683]
[1646780354978,0.95240264,2572.6,2571.7,1.1683]
[1646780355175,0.95240264,2572.6,2571.8,1.58989495]
[1646780355176,3.5,2572.5,2571.8,1.58989495]
[1646780355577,4.5,2572.5,2571.8,1.58989495]
[1646780355787,5.45240264,2572.5,2571.8,1.58989495]
[1646780355977,0.00345296,2572.3,2571.9,1.58989495]
[1646780356177,0.9558556,2572.3,2571.5,1.55056259]
[1646780356379,3.5,2572.2,2571.6,1.59011094]
[1646780356827,4.5,2572.2,2571.6,1.59011094]
[1646780357019,3.5,2572.2,2571.6,1.59011094]
[1646780357220,0.0034531,2572.0,2571.6,1.59011094]
[1646780357618,0.0034531,2572.0,2571.5,0.5]
[1646780358118,5.45240264,2572.2,2571.5,0.5]
[1646780358323,0.00345318,2571.9,2571.5,0.5]
[1646780359321,18.03845516,2572.2,2571.5,0.5]
[1646780359522,0.00345338,2571.8,2571.5,0.5]
[1646780360575,3.5,2571.9,2571.5,0.5]
[1646780360775,0.00345341,2571.8,2571.5,0.5]
[1646780361575,1.0,2571.9,2571.5,0.5]
[1646780361776,13.47276,2572.0,2571.5,0.5]
[1646780361777,14.47276,2572.0,2571.5,0.5]
[1646780361976,0.00345341,2571.8,2571.5,0.5]
[1646780362877,4.5,2571.9,2571.5,0.5]
[1646780363076,0.00345339,2571.8,2571.5,0.5]
[1646780364079,3.5,2571.9,2571.5,0.5]
[1646780364326,0.00345339,2571.8,2571.0,0.5]
[1646780365123,0.00345339,2571.8,2571.1,1.59025761]
[1646780365422,4.5,2571.9,2571.1,1.58880303]
[1646780365621,0.00345353,2571.5,2571.1,1.58880303]
[1646780366523,4.5,2571.9,2571.0,0.5]
[1646780366724,0.00345359,2571.4,2571.0,0.5]
[1646780367723,4.5,2571.9,2571.0,0.5]
[1646780367922,0.00345365,2571.3,2571.0,0.5]
[1646780368771,4.5,2571.9,2571.0,0.5]
[1646780369171,0.00345367,2571.3,2571.0,0.5]
[1646780370071,4.5,2571.9,2571.0,0.5]
[1646780370276,0.00345369,2571.3,2571.0,0.5]
[1646780371275,4.5,2571.9,2571.0,0.5]
[1646780371476,0.00345369,2571.3,2571.0,0.5]
[1646780372524,4.5,2571.9,2571.0,0.5]
[1646780372725,0.00345369,2571.3,2571.0,0.5]
[1646780373631,4.5,2571.9,2571.0,0.5]
[1646780373632,1.0,2571.9,2571.0,0.5]
[1646780373924,0.00345369,2571.3,2571.0,0.5]
[1646780374923,0.97288,2571.7,2571.0,0.5]
[1646780375123,0.00345369,2571.3,2571.0,0.5]
[1646780376175,0.1943,2571.6,2571.0,0.5]
[1646780376472,0.00345369,2571.3,2571.0,0.5]
[1646780377276,0.1943,2571.6,2571.0,0.5]
[1646780377478,0.00345369,2571.3,2571.0,0.5]
[1646780377677,0.1943,2571.2,2571.0,0.5]
[1646780378781,0.00345371,2571.2,2571.0,0.5]
[1646780379620,0.97299,2571.4,2571.0,0.5]
[1646780379818,0.97299,2571.4,2570.9,0.00282017]
[1646780379819,0.1943,2571.3,2570.9,0.00282017]
[1646780380020,0.00345371,2571.2,2570.9,0.00282017]
[1646780380819,0.1943,2571.3,2570.9,0.00282017]
[1646780381119,0.00345374,2571.2,2570.9,0.00282017]
[1646780382124,0.1943,2571.3,2570.9,0.00282017]
[1646780382424,0.00345374,2571.2,2570.9,0.00282017]
[1646780383369,14.06729,2571.4,2570.9,0.00282017]
[1646780383569,0.00345374,2571.2,2570.9,0.00282017]
[1646780383768,0.1943,2571.1,2570.9,0.00282017]
[1646780384270,0.00345374,2571.2,2570.9,0.00282017]
[1646780384469,0.1943,2571.3,2570.9,0.00282017]
[1646780384670,0.00345377,2571.1,2570.9,0.00282017]
[1646780385771,0.1943,2571.3,2570.9,0.00282017]
[1646780385973,0.00345377,2571.1,2570.9,0.00282017]
[1646780386172,0.97655377,2571.1,2570.9,0.00282017]
[1646780386827,0.9731,2571.1,2570.9,0.00282017]
[1646780387219,12.87655377,2571.1,2570.9,0.00282017]
[1646780387620,14.07085377,2571.1,2570.9,0.00282017]
[1646780388021,14.0674,2571.1,2570.9,0.00282017]
[1646780388423,14.07085377,2571.1,2570.9,0.00282017]
[1646780389227,14.0674,2571.1,2570.9,0.00282017]
[1646780389622,14.07085377,2571.1,2570.9,0.00282017]
[1646780389822,14.99365377,2571.1,2570.9,0.00282017]
[1646780390023,14.79935377,2571.1,2570.9,0.00282017]
[1646780390222,14.79935377,2571.1,2570.9,0.00167078]
[1646780390422,14.7959,2571.1,2570.9,0.00167078]
[1646780390664,14.79935377,2571.1,2570.9,0.00167078]
[1646780390869,14.99365377,2571.1,2570.9,0.00167078]
[1646780391670,15.2902,2571.1,2570.9,0.00167078]
[1646780391873,15.29365377,2571.1,2570.9,0.00167078]
[1646780392469,15.09935377,2571.1,2570.9,0.00167078]
[1646780392873,15.0959,2571.1,2570.9,0.00167078]
[1646780393172,15.29365377,2571.1,2570.9,0.00167078]
[1646780393975,15.2902,2571.1,2570.9,0.00167078]
[1646780394420,15.29365377,2571.1,2570.9,0.00167078]
[1646780394915,12.87322,2570.8,2570.2,1.59213124]
[1646780395116,13.87322,2570.8,2570.2,1.59071901]
[1646780395324,13.87322,2570.8,2569.8,0.00141223]
[1646780395520,14.17322,2570.8,2569.9,0.00345507]
[1646780395722,13.87322,2570.8,2569.9,0.00345507]
[1646780396220,13.87322,2570.8,2569.9,1.59421003]
[1646780396423,13.87322,2570.8,2569.9,1.59075496]
[1646780396620,13.87322,2570.8,2570.0,1.59075496]
[1646780396820,13.87322,2570.8,2570.1,1.59075496]
[1646780397027,13.87322,2570.8,2569.9,0.00345495]
[1646780397626,13.87322,2570.8,2569.8,1.59073802]
[1646780397824,13.87322,2570.8,2569.9,1.59419297]
[1646780398074,13.87322,2570.8,2570.0,1.59073802]
[1646780398268,13.87322,2570.8,2570.1,1.59073802]
[1646780398469,13.87322,2570.8,2570.2,1.59073802]
[1646780398670,13.87322,2570.8,2569.9,0.00345495]
[1646780398974,13.87322,2570.8,2569.8,1.59069456]
[1646780399177,13.87322,2570.8,2569.9,1.59414964]
[1646780399374,14.06772,2570.8,2570.0,1.59069456]
[1646780399577,14.06772,2570.8,2570.1,1.59069456]
[1646780399773,14.06772,2570.8,2570.2,1.59069456]
[1646780399974,14.06772,2570.8,2570.3,1.59069456]
[1646780400176,14.06772,2570.8,2570.4,1.59069456]
[1646780400376,14.06772,2570.8,2569.9,0.00345505]
[1646780400777,14.06772,2570.8,2569.9,1.59417119]
[1646780401178,14.36772,2570.8,2569.9,1.59417119]
[1646780401375,14.36772,2570.8,2569.9,1.59071614]
[1646780401577,17.74383682,2570.8,2570.0,1.59071614]
[1646780401832,17.74383682,2570.8,2570.1,1.59071614]
[1646780402033,17.74383682,2570.8,2570.2,1.59071614]
[1646780402234,17.44383682,2570.8,2570.2,1.59071614]
[1646780402431,17.5520843,2570.8,2570.3,1.59071614]
[1646780402631,17.5520843,2570.8,2570.5,0.00407544]
[1646780402830,17.5520843,2570.8,2569.9,1.59423928]
[1646780402831,13.84679,2570.7,2569.9,1.59423928]
[1646780403232,14.84679,2570.7,2570.0,1.5907842]
[1646780403431,0.97338,2570.4,2570.1,1.5907842]
[1646780403632,0.97338,2570.4,2569.8,1.5907842]
[1646780403931,0.97338,2570.4,2569.9,1.59423916]
[1646780404131,0.97338,2570.4,2570.0,0.00407544]
[1646780404431,0.97338,2570.4,2569.9,0.00345496]
[1646780404837,0.97338,2570.4,2569.7,1.5907842]
[1646780405031,0.05081992,2570.2,2569.7,1.5907842]
[1646780405232,0.97338,2570.4,2570.3,0.1127477]
[1646780405432,0.97338,2570.4,2570.3,1.7035319]
[1646780405667,0.97338,2570.4,2570.3,1.70760734]
[1646780406469,1.02419992,2570.4,2570.3,1.70760734]
[1646780406871,1.32419992,2570.4,2570.3,1.70760734]
[1646780407076,1.32419992,2570.4,2570.3,0.11682314]
[1646780407077,13.22419992,2570.4,2570.3,0.11682314]
[1646780407273,14.22419992,2570.4,2570.3,0.11682314]
[1646780409181,14.483175,2570.4,2570.3,0.11682314]
[1646780409423,13.783175,2570.4,2570.3,0.11682314]
[1646780410619,14.783175,2570.4,2570.3,0.11682314]
[1646780411622,14.783175,2570.4,2570.3,0.1156306]
[1646780415177,14.783175,2570.4,2569.9,0.00155453]
[1646780415373,11.9,2570.2,2569.8,0.28787653]
[1646780415575,11.9,2570.2,2569.2,0.02775456]
[1646780415576,12.87357,2570.0,2568.7,0.18349056]
[1646780415777,11.9,2569.8,2568.2,0.73566131]
[1646780415974,11.9,2569.8,2568.3,1.59155561]
[1646780415975,11.837334,2569.6,2568.3,1.59155561]
[1646780416172,5.062,2569.5,2568.3,1.59155561]
[1646780416372,8.15413516,2569.5,2568.2,0.02775456]
[1646780416574,0.97423,2569.1,2568.2,0.02775456]
[1646780416820,15.637334,2569.0,2568.2,0.02221414]
[1646780417025,0.05081992,2568.6,2568.2,0.02221414]
[1646780417227,17.78148916,2569.0,2568.3,0.0064649]
[1646780417429,17.39108652,2569.0,2568.3,0.0064649]
[1646780418128,11.837334,2568.7,2568.2,0.02221414]
[1646780418329,11.837334,2568.5,2568.2,0.02221414]
[1646780418528,0.05081992,2568.4,2568.2,0.02221414]
[1646780418729,12.811574,2568.5,2568.2,0.02221414]
[1646780418730,13.811574,2568.5,2568.2,0.02221414]
[1646780419629,13.811574,2568.5,2568.2,0.02564716]
[1646780420028,0.05081992,2568.4,2568.2,0.02564716]
[1646780420429,13.811574,2568.5,2568.2,0.02221414]
[1646780420982,13.811574,2568.5,2568.2,0.02564719]
[1646780421184,11.837334,2568.3,2568.2,0.02564719]
[1646780421584,12.88815392,2568.3,2568.2,0.02564719]
[1646780421786,12.88815392,2568.3,2568.2,0.02221414]
[1646780422187,0.05081992,2568.3,2568.2,0.02221414]
[1646780423890,0.05081992,2568.3,2567.9,0.2744]
[1646780424093,0.85897508,2568.4,2567.9,0.2744]
[1646780424320,0.05081992,2568.2,2567.9,0.2744]
[1646780424522,0.1947,2568.1,2567.9,0.2744]
[1646780424722,0.1947,2568.3,2567.9,0.2744]
[1646780425027,0.062666,2568.0,2567.9,0.2744]
[1646780425421,0.1947,2568.3,2568.1,0.06275657]
[1646780426428,0.1945,2568.4,2568.1,0.06275657]
[1646780427429,0.05081992,2568.3,2568.1,0.06275657]
[1646780427632,0.1945,2568.2,2568.1,0.06275657]
[1646780427830,0.1945,2568.4,2568.1,0.06275657]
[1646780428066,0.1945,2568.4,2568.0,0.00373445]
[1646780428267,3.6945,2568.4,2567.9,0.18474947]
[1646780428667,1.1945,2568.4,2567.7,0.02047957]
[1646780428867,0.05081992,2568.2,2567.7,0.00554041]
[1646780429168,0.01725718,2568.2,2567.7,0.00554041]
[1646780430467,0.05081992,2568.0,2567.7,0.00554041]
[1646780430667,0.01725718,2568.2,2567.7,0.00554041]
[1646780431472,0.55897508,2568.0,2567.7,0.00554041]
[1646780431928,0.05081992,2567.8,2567.7,0.00554041]
[1646780432728,0.56438618,2568.0,2567.7,0.00554041]
[1646780434028,0.56438618,2568.0,2567.7,0.0092749]
[1646780434832,0.56438618,2568.0,2567.7,0.00554041]
[1646780435033,0.547129,2568.0,2567.7,0.00554041]
[1646780435245,0.547129,2568.0,2567.7,0.0092749]
[1646780436073,0.547129,2568.0,2567.7,0.00554041]
[1646780436472,13.87426,2568.2,2567.7,0.0092749]
[1646780436673,0.26764146,2568.0,2567.7,0.0092749]
[1646780436871,0.547129,2568.0,2567.7,0.0092749]
[1646780437273,0.547129,2568.0,2567.7,0.00554041]
[1646780437473,0.547129,2568.0,2567.7,0.00920488]
[1646780438576,0.547129,2568.0,2567.7,0.30554041]
[1646780438976,0.547129,2568.0,2567.7,0.24653888]
[1646780439823,0.547129,2568.0,2567.7,0.19287441]
[1646780440025,0.547129,2568.0,2567.7,0.19621432]
[1646780440829,0.547129,2568.0,2567.7,3.69287441]
[1646780441027,0.547129,2568.0,2567.7,0.00554041]
[1646780441231,0.547129,2568.0,2567.7,0.30864689]
[1646780441828,17.47666,2568.6,2567.7,0.30864689]
[1646780442029,0.26764146,2567.8,2567.7,0.30554041]
[1646780442431,0.26764146,2567.8,2567.7,0.30864689]
[1646780443276,0.26764146,2567.8,2567.7,0.00554041]
[1646780443677,0.26764146,2567.8,2567.6,0.50310653]
[1646780443876,0.26764146,2567.8,2567.7,0.3]
[1646780445178,0.27948754,2568.2,2567.8,0.3898]
[1646780445384,0.3894,2569.1,2568.3,0.3898]
[1646780445579,0.00317494,2569.4,2568.4,3.8898]
[1646780445784,4.84853264,2570.1,2568.6,0.3898]
[1646780445785,0.27418926,2569.6,2568.6,0.3898]
[1646780445984,0.1946,2569.6,2568.8,0.3898]
[1646780446183,7.36,2570.6,2569.0,0.3898]
[1646780446385,0.95240264,2570.9,2569.4,0.9731831]
[1646780446386,0.07957203,2570.5,2569.4,0.9731831]
[1646780446699,0.7988,2571.0,2569.4,0.9731831]
[1646780446700,0.25171203,2571.0,2569.7,12.2898]
[1646780446893,0.95240264,2571.5,2569.5,4.11199999]
[1646780446894,0.95240264,2571.8,2570.1,18.92]
[1646780447089,0.70522718,2572.0,2570.5,12.2898]
[1646780447283,0.95240264,2572.3,2570.7,12.28768867]
[1646780447485,8.31240264,2572.7,2571.2,0.3898]
[1646780447685,7.36,2572.7,2571.3,4.062]
[1646780447884,7.36,2572.7,2571.4,0.562]
[1646780448085,7.36,2572.7,2571.5,3.5]
[1646780448286,7.36,2572.7,2571.6,0.562]
[1646780448486,0.00174224,2572.1,2571.7,3.5]
[1646780448685,0.00174224,2572.1,2571.8,0.562]
[1646780449191,0.00174224,2572.1,2571.9,3.5]
[1646780449487,0.00174224,2572.1,2571.9,4.362]
[1646780449685,0.00174224,2572.1,2572.0,3.5]
[1646780449884,0.00174224,2572.1,2572.0,4.062]
[1646780450087,0.00174224,2572.1,2572.0,0.562]
[1646780450584,7.36,2573.3,2572.0,4.062]
[1646780450786,7.36,2573.3,2572.1,3.8]
[1646780450787,0.00174224,2572.2,2572.1,3.8]
[1646780450984,0.00174224,2572.2,2572.1,4.362]
[1646780451184,0.00174224,2572.2,2572.1,0.862]
[1646780451389,0.00174224,2572.2,2572.1,4.362]
[1646780451789,8.36,2573.3,2572.1,4.362]
[1646780451986,0.00361823,2572.3,2572.2,3.5]
[1646780452184,0.00361823,2572.3,2572.1,0.862]
[1646780452385,0.00361823,2572.3,2572.2,3.5]
[1646780452587,0.19021259,2573.5,2572.2,3.5]
[1646780452794,8.31240264,2573.9,2572.2,13.462]
[1646780452988,8.31240264,2573.9,2572.3,3.5]
[1646780452989,7.36,2573.9,2572.3,3.5]
[1646780453187,7.36,2573.9,2572.4,0.562]
[1646780453388,7.36,2573.9,2572.5,3.5]
[1646780453589,7.36,2573.9,2572.6,0.562]
[1646780453789,7.36,2573.9,2572.7,3.5]